{"text_format":"3","workbook":"xlsx","n_sheets":3,"sheets":["1-4","5-9","10-11"],"read":"whole","date_system":"1900"}

{"sheet":"1-4","index":0,"n_rows":34,"n_cols":11,"rows_kept":34,"merged":[[8,0,8,10],[11,0,12,0],[11,1,12,1],[11,2,12,2],[11,3,12,3],[11,4,11,7],[11,8,12,8],[11,9,12,9],[11,10,12,10],[20,0,20,10],[26,0,26,10]]}
[]
[]
[{"$nulls":9},"\"Утверждаю\""]
[{"$nulls":9},"Директор МБОУ СОШ №21 - \"ОЦ \"Дай5\" "]
[{"$nulls":9},"Е.А Тухфатуллина "]
[]
[{"$nulls":9},"____________________________________"]
[]
["План внеурочной деятельности на 2022 - 2023 учебный год "]
[]
[]
["Направления","Реализации программы","Форма организации ","Виды деятельности","Количество часов в неделю",{"$nulls":3},"Недельных часов","Годовых часов","Промежуточная аттестация"]
[{"$nulls":4},1,2,3,4]
[" Информационно-просветительские занятия патриотической, нравственной и экологической направленности","Разговоры о важном ","Классный час, круглый стол","Досугово-развлекательная",1,1,1,1,1,34,"выставка творческих работ "]
[" Занятия по формированию функциональной грамотности обучающихся","«Финансовая грамотность»","Интегрированный курс","Познавательная деятельность",1,1,1,1,1,34,"Квест-игра"]
["Занятия, направленные на удовлетворение профориентационных интересов и потребностей обучающихся (в том числе основы предпринимательства).","\"В мире профессий\"","Классный час, круглый стол","Познавательная деятельность ",1,1,1,1,1,34,"выставка творческих работ "]
["Занятия, связанные с реализацией особых интеллектуальных и социокультурных потребностей обучающихся (в том числе для сопровождения изучения отдельных учебных предметов на углубленном уровне, проектно-исследовательской деятельности, исторического просвещения)","\"Учусь создавать проеты\" ","Учебный курс","Познавательная деятельность",1,1,1,1,1,34,"прект "]
["Занятия, связанные с реализацией особых интеллектуальных и социокультурных потребностей обучающихся (в том числе для сопровождения изучения отдельных учебных предметов на углубленном уровне, проектно-исследовательской деятельности, исторического просвещения)","«Основы смыслового чтения»","Учебный курс","Познавательная деятельность ",1,1,1,1,1,34,"Работа с текстом"]
["Занятия, связанные с реализацией особых интеллектуальных и социокультурных потребностей обучающихся (в том числе для сопровождения изучения отдельных учебных предметов на углубленном уровне, проектно-исследовательской деятельности, исторического просвещения)","Умники и умницы ","Учебный курс","Познавательная деятельность ",1,1,1,1,1,34,"ПА в форме теста "]
[{"$nulls":8},{"$f":"SUM(I14:I19)","v":6},{"$f":"SUM(J14:J19)","v":204}]
["Реализуются через план ВР "]
["Социальное                                                         Ззанятия, направленные на  удовлетворение социальных интересов и потребностей обучающихся ","РДШ, Юнармия, волонтерство , совет старшекласников ","Акции, мероприятия, конкурсы","Социальное творчество",1,1,1,1,1,34,"портфолио "]
["Социальное                                                   Ззанятия, направленные на  удовлетворение социальных интересов и потребностей обучающихся ","Школьная служба медиации ","Клуб общения ","Социальное творчество",1,1,1,1,1,34,"портфолио "]
["Социальное                                                    Ззанятия, направленные на  удовлетворение социальных интересов и потребностей обучающихся ","Школьные медиа ","Клуб общения ","Социальное творчество",1,1,1,1,1,34,"портфолио "]
["Социальное                                            Ззанятия, направленные на  удовлетворение социальных интересов и потребностей обучающихся ","ГТО ","Спортивные игры ","Спортивно - оздоровительная деятельность ",1,1,1,1,1,34,"портфолио "]
[{"$nulls":4},{"$f":"SUM(E22:E25)","v":4},4,4,4,4,136]
["Реализуются через ДОО "]
["Занятия, направленные на удовлетворение интересов и потребностей обучающихся в творческом и физическом развитии (в том числе организация занятий в школьных театрах, школьных музеях, школьных спортивных клубах","Школа футбола ","Кружок ","Спортивно-оздоровительная",2,2,2,2,2,68,"спортивные игры"]
["Занятия, направленные на удовлетворение интересов и потребностей обучающихся в творческом и физическом развитии (в том числе организация занятий в школьных театрах, школьных музеях, школьных спортивных клубах","Чудо  - шашки ","Кружок ","Познавательная деятельность",2,2,2,2,2,68,"турнир "]
["Занятия, направленные на удовлетворение интересов и потребностей обучающихся в творческом и физическом развитии (в том числе организация занятий в школьных театрах, школьных музеях, школьных спортивных клубах","Хореография ","Кружок ","Творческая деятельность",2,2,2,2,2,68,"Отчетный концерт"]
["Занятия, направленные на удовлетворение интересов и потребностей обучающихся в творческом и физическом развитии (в том числе организация занятий в школьных театрах, школьных музеях, школьных спортивных клубах","Мир театра ","Кружок ","Творческая деятельность",2,2,2,2,2,68,"Отчетный концерт"]
["Ззанятия, направленные на удовлетворение социальных интересов и потребностей обучающихся (в том числе в рамках Российского движения школьников, Юнармии, реализации проекта «Россия — страна возможностей»","Моя малая Родина ","Кружок ","Познаватльная деятельность ",2,2,2,2,2,68]
["Занятия, связанные с реализацией особых интеллектуальных и социокультурных потребностей обучающихся ","Арт педагогика для детей с ОВЗ","круңок ","соөиалҗное творчество ",2,2,2,2,2,68]
[null,"Итого",{"$nulls":6},38,1354]

{"sheet":"5-9","index":1,"n_rows":33,"n_cols":13,"rows_kept":33,"merged":[[1,1,2,1],[1,2,2,2],[1,3,2,3],[1,5,1,9],[1,10,1,11],[1,12,2,12],[2,0,6,0],[2,13,6,13],[2,14,6,14],[2,17,8,17],[6,1,9,1],[6,4,8,4],[15,1,15,12],[21,1,21,12],[29,1,32,1],[29,4,31,4]]}
[]
[null,"Направление внеурочной деятельности","Название ","Форма организации","Виды деятельности","Всего ",{"$nulls":4},"Количество часов ",null,"Промежуточная аттестация "]
[{"$nulls":5},5,6,7,8,9," неделю ","Год "]
[null,"Общекультурное                              Информационно-просветительские занятия патриотической, нравственной и экологической направленности","Разговоры о важном ","Тематические классные часы","Познавательная деятельность",1,1,1,1,1,1,34,"Выставка творческих работ "]
[null,"Общеинтеллектуальное                    Занятия по формированию функциональной грамотности обучающихся","Финансовая грамотность ","Учебный курс ","Познавательная деятельность",1,1,1,1,1,1,34,"квест - игра "]
[null,"Социальное                                      Ззанятия, направленные на  удовлетворение социальных интересов и потребностей обучающихся ","«Мир профессий»","учебный курс ","Социальное творчество",1,1,1,1,1,1,34,"Тест"]
[null,"Общеинтеллектуальное                    Занятия, связанные с реализацией особых интеллектуальных и социокультурных потребностей обучающихся ","Арт  - педагогика ","Факультативный курс","Познавательная, творческая деятельность",1,1,1,1,1,1,34,"Контрольная работа"]
[null,null,"«Практикум по русскому языку»","Факультативный курс",{"$nulls":5},1,1,34,"Контрольная работа"]
[null,null,"«Практикум по общестовзнанию»","Факультативный курс",{"$nulls":5},1,1,34,"Тест"]
[null,null,"\"Практикум по истории\"","Факультативный курс","Познавательная деятельность",{"$nulls":4},1,1,34,"Тест "]
[null,"Духово-  нравственное                                                   Занятия,     направленные на удовлетворение интересов и потребностей обучающихся в творческом и физическом развитии ","Моя родина Россия , край родной, мой Татарстан (музей)","Учебный курс ","Проектная деятельность ",1,{"$nulls":3},1,1,34,"Проект "]
[null,"Духово-  нравственное                                                   Занятия,     направленные на удовлетворение интересов и потребностей обучающихся в творческом и физическом развитии ","Моя родина Россия , край родной, мой Татарстан (музей)","Учебный курс ","Проектная деятельность ",1,{"$nulls":3},1,1,34,"Проект "]
[null,"Социальное                                      Ззанятия, направленные на  удовлетворение социальных интересов и потребностей обучающихся ","Англйский с увлечением","учебный курс ","Социальное творчество",null,1,{"$nulls":3},1,34,"Проект "]
[null,"Социальное                                      Ззанятия, направленные на  удовлетворение социальных интересов и потребностей обучающихся ","Мир вокруг нас ","учебный курс ","Социальное творчество",null,null,7,null,null,1,34,"Проект "]
[null,"Общеинтеллектуальное           занятия связанные с реализацией особых интеллектуальных и социокультурных потребностей ","История в лицах ","учебный курс ","Социальное творчество",{"$nulls":3},1,null,1,34,"Проект "]
[null,"Реализуется через план ВР, в соответсвии с программой воспитания "]
[null,"Социальное                                      Ззанятия, направленные на  удовлетворение социальных интересов и потребностей обучающихся ","РДШ, Юнармия, волонтерство , совет старшекласников ","Акции, мероприятия, конкурсы","Социальное творчество",1,1,1,1,1,1,34,"Портфолио "]
[null,"Социальное                                      Ззанятия, направленные на  удовлетворение социальных интересов и потребностей обучающихся ","Школьная служба медиации ","Клуб общения ","Социальное творчество",1,1,1,1,1,1,34,"Портфолио "]
[null,"Социальное                                      Ззанятия, направленные на  удовлетворение социальных интересов и потребностей обучающихся ","Школьные медиа ","Клуб общения ","Социальное творчество",1,1,1,1,1,1,34,"Портфолио "]
[null,"Социальное                                      Ззанятия, направленные на  удовлетворение социальных интересов и потребностей обучающихся ","ГТО ","Спортивные игры ","Спортивно - оздоровительная деятельность ",1,1,1,1,1,1,34,"Портфолио "]
[{"$nulls":5},{"$f":"SUM(F17:F20)","v":4},4,4,4,4,4,136]
[null,"Реализуется через ДО "]
[null,"Духово-  нравственное                                                   Занятия,     направленные на удовлетворение интересов и потребностей обучающихся в творческом и физическом развитии ","хореография ","кружок ","Досуго-развлекательная",2,{"$nulls":4},2,68,"Отчетный концерт "]
[null,"Духово-  нравственное                                                   Занятия,     направленные на удовлетворение интересов и потребностей обучающихся в творческом и физическом развитии ","Весь мир театр ","кружок ","Досуго-развлекательная",2,2,2,null,2,2,68,"Отчетный концерт "]
[null,"Духово-  нравственное                                                   Занятия,     направленные на удовлетворение интересов и потребностей обучающихся в творческом и физическом развитии ","Школа Вокала ","кружок ","Досуго-развлекательная",2,2,2,null,2,2,68,"Отчетный концерт "]
[null,"Духово-  нравственное                                                   Занятия,     направленные на удовлетворение интересов и потребностей обучающихся в творческом и физическом развитии ","Моя родина Россия , край родной, мой Татарстан (музей)","кружок ","Познавательная деятельность ",2,2,2,null,2,2,68,"Выставка творческих работ "]
[null,"Духово-  нравственное                                                   Занятия,     направленные на удовлетворение интересов и потребностей обучающихся в творческом и физическом развитии ","Веселая кисточка ","кружок ","Творческая деятельность ",2,2,2,null,2,2,68,"Выставка творческих работ "]
[null,"Спортивно – оздоровительное                 Занятия,     направленные на удовлетворение интересов и потребностей обучающихся в творческом и физическом развитии","КЕС - баскет ","кружок ","Проблемно-ценностное общение",2,2,2,2,2,68,34,"Портфолио "]
[null,"Спортивно – оздоровительное                 Занятия,     направленные на удовлетворение интересов и потребностей обучающихся в творческом и физическом развитии","Школа футбола ","кружок ","Проблемно-ценностное общение",2,{"$nulls":4},34,34,"Портфолио "]
[null,"Общеинтеллектуальное                    Занятия, связанные с реализацией особых интеллектуальных и социокультурных потребностей обучающихся ","Умники и умницы ","кружок ","Познавательная, творческая деятельность",1,1,1,null,1,1,34,"Контрольная работа"]
[null,null,"\"Говорим по английски\" ","кружок ",null,1,1,1,null,1,1,34,"Контрольная работа"]
[null,null,"«Практикум по общестовзнанию»","кружок ",null,1,1,1,null,1,1,34,"Тест"]
[null,null,"\"Практикум по истории\"","кружок ","Познавательная деятельность",1,1,1,null,1,1,17,"Тест "]

{"sheet":"10-11","index":2,"n_rows":25,"n_cols":9,"rows_kept":25,"merged":[[0,0,1,0],[0,1,1,1],[0,2,1,2],[0,4,0,5],[0,6,0,7],[0,8,1,8],[5,0,7,0],[5,3,7,3],[9,0,9,8],[15,0,15,8]]}
["Направление внеурочной деятельности","Название ","Форма организации","Виды деятельности","Всего ",null,"Количество часов в год",null,"Промежуточная аттестация "]
[{"$nulls":4},"10кл","11кл ","10кл","11кл "]
["Общекультурное                              Информационно-просветительские занятия патриотической, нравственной и экологической направленности","Разговоры о важном ","Тематические классные часы","Познавательная деятельность",1,1,34,34,"Выставка творческих работ "]
["Общеинтеллектуальное                    Занятия по формированию функциональной грамотности обучающихся","Финансовая грамотность ","Факультативный курс","Познавательная деятельность",1,1,34,34,"квест - игра "]
["Социальное                                      Ззанятия, направленные на  удовлетворение социальных интересов и потребностей обучающихся ","«Мир профессий»","Элективный курс ","Социальное творчество",1,1,34,34,"Тест"]
["Общеинтеллектуальное                    Занятия, связанные с реализацией особых интеллектуальных и социокультурных потребностей обучающихся ","«Практикум по математике»","Факультативный курс","Познавательная, творческая деятельность",1,1,34,34,"Контрольная работа"]
[null,"«Практикум по русскому языку»","Факультативный курс",null,1,1,34,34,"Контрольная работа"]
[null,"«Практикум по общестовзнанию»","Факультативный курс",null,1,1,34,34,"Тест"]
[{"$nulls":4},{"$f":"SUM(E3:E8)","v":6},{"$f":"SUM(F3:F8)","v":6},{"$f":"SUM(G3:G8)","v":204},{"$f":"SUM(H3:H8)","v":204}]
["Реализуется через план ВР, в соответсвии с программой воспитания "]
["Социальное                                      Ззанятия, направленные на  удовлетворение социальных интересов и потребностей обучающихся ","РДШ, Юнармия, волонтерство , совет старшекласников ","Акции, мероприятия, конкурсы","Социальное творчество",1,1,34,34,"Портфолио "]
["Социальное                                      Ззанятия, направленные на  удовлетворение социальных интересов и потребностей обучающихся ","Школьная служба медиации ","Клуб общения ","Социальное творчество",0.5,0.5,17,17,"Портфолио "]
["Социальное                                      Ззанятия, направленные на  удовлетворение социальных интересов и потребностей обучающихся ","Школьные медиа ","Клуб общения ","Социальное творчество",1,1,34,34,"Портфолио "]
["Социальное                                      Ззанятия, направленные на  удовлетворение социальных интересов и потребностей обучающихся ","ГТО ","Спортивные игры ","Спортивно - оздоровительная деятельность ",1,1,34,34,"Портфолио "]
[{"$nulls":4},{"$f":"SUM(E11:E14)","v":3.5},{"$f":"SUM(F11:F14)","v":3.5},{"$f":"SUM(G11:G14)","v":119},{"$f":"SUM(H11:H14)","v":119}]
["Реализуется через ДО "]
["Духово-  нравственное                                                   Занятия,     направленные на удовлетворение интересов и потребностей обучающихся в творческом и физическом развитии ","хореография ","кружок ","Досуго-развлекательная",2,2,68,68,"Отчетный концерт "]
["Духово-  нравственное                                                   Занятия,     направленные на удовлетворение интересов и потребностей обучающихся в творческом и физическом развитии ","Вся жизнь Игра ( театр)","кружок ","Досуго-развлекательная",2,2,68,68,"Отчетный концерт "]
["Духово-  нравственное                                                   Занятия,     направленные на удовлетворение интересов и потребностей обучающихся в творческом и физическом развитии ","Школа Вокала ","кружок ","Досуго-развлекательная",2,2,68,68,"Отчетный концерт "]
["Духово-  нравственное                                                   Занятия,     направленные на удовлетворение интересов и потребностей обучающихся в творческом и физическом развитии ","Моя родина Россия , край родной, мой Татарстан (музей)","кружок ","Познавательная деятельность ",2,2,68,68,"Выставка творческих работ "]
["Спортивно – оздоровительное                 Занятия,     направленные на удовлетворение интересов и потребностей обучающихся в творческом и физическом развитии","КЕС - баскет ","кружок ","Проблемно-ценностное общение",2,2,68,68,"Портфолио "]
["Спортивно – оздоровительное                 Занятия,     направленные на удовлетворение интересов и потребностей обучающихся в творческом и физическом развитии","Школа футбола ","кружок ","Проблемно-ценностное общение",2,2,68,68,"Портфолио "]
["Итого ",{"$nulls":3},12,12,204,204]
[]
["ИТОГО  за ступень  "]